[Event "44th Chess Olympiad Open 2022"]
[Site "Chennai"]
[Date "2022.08.03"]
[Round "6.43"]
[White "Nielsen, Hogni Egilstoft"]
[Black "Kett, Tim"]
[Result "*"]
[WhiteElo "2414"]
[BlackElo "2197"]
[Annotator "TA"]
[PlyCount "66"]
[EventDate "2022.??.??"]
[TimeControl "60"]

{[%evp 16,65,26,35,50,34,36,15,22,22,20,19,37,38,34,34,39,35,37,49,42,-28,-28,
-78,-85,-91,-64,-72,-52,-63,-32,-332,-86,-201,-186,-616,-596,-1042,-939,-29987,
-382,-29988,-29989,-29989,-29990,-29990,-5110,-5102,-5102,-29998,-29999,-29999]
} 1. e4 {[%emt 0:00:03]} e5 {[%emt 0:00:13]} 2. Nf3 {[%emt 0:00:17]} Nc6 {
[%emt 0:00:08]} 3. Bc4 {[%emt 0:00:12]} Nf6 {[%emt 0:00:10]} 4. d3 {[%emt 0:00:
00]} Be7 {[%emt 0:00:09]} 5. O-O {[%emt 0:01:11]} d6 {[%emt 0:00:19]} 6. a4 {
[%emt 0:01:30]} O-O {[%emt 0:00:17]} 7. Re1 {[%emt 0:03:49]} Be6 {[%emt 0:00:
00]} 8. Nbd2 {[%emt 0:02:31]} Qd7 {[%emt 0:05:31]} 9. c3 {[%emt 0:02:27]} Rad8
{[%emt 0:03:34] C55: Two Knights: 4 d3, 4 d4 exd4 5 e5 and Max Lange Attack.}
10. a5 {[%emt 0:10:57]} h6 {[%emt 0:25:27]} 11. Bb5 {[%emt 0:04:23]} a6 {
[%emt 0:01:36] The position is equal.} 12. Ba4 {[%emt 0:02:09]} Qc8 {[%emt 0:
00:00]} 13. b4 {[%emt 0:07:13] [#]} Nh7 $146 {[%emt 0:05:52]} ({Predecessor:} 
13... b5 14. axb6 cxb6 15. b5 axb5 16. Bxb5 d5 17. Qa4 dxe4 18. Nxe4 Nxe4 19.
Qxe4 {0-1 (107) Radulski,J (2511)-Petkov,V (2434) Plovdiv 2008}) 14. Nf1 {
[%emt 0:28:28][%cal Yd2f1,Yf1e3,Ye3d5]} f5 {[%emt 0:06:00]} 15. Ne3 {[%emt 0:
02:30]} f4 {[%emt 0:06:07]} 16. Nd5 {[%emt 0:00:27] Bxc6 is the strong threat.}
Bf6 {[%emt 0:00:12]} 17. d4 {[%emt 0:04:07]} Ne7 {[%emt 0:01:58][%cal Yc6e7,
Ye7d5,Yd5c3]} 18. Bb3 {[%emt 0:06:57]} (18. Nxf6+ $14 Nxf6 19. Bb2) 18... Nxd5
$11 {[%emt 0:02:49]} 19. dxe5 {[%emt 0:04:54]} (19. exd5 $11 Bg4 20. h3 (20.
dxe5 Bxe5 21. Qd3 Bxf3 $11)) 19... Nxc3 $17 {[%emt 0:04:49]} 20. Qc2 {[%emt 0:
00:09] Threatens to win with Nd4.} Bxe5 {[%emt 0:00:45]} 21. Nxe5 {[%emt 0:00:
21]} dxe5 {[%emt 0:00:05]} 22. Qxc3 {[%emt 0:00:18]} f3 {[%emt 0:03:51]} 23.
Bb2 $2 {[%emt 0:01:19]} (23. Bd1 $15) 23... Rd4 $2 {[%emt 0:03:06]} (23... Bxb3
$19 {has better winning chances.} 24. Qxb3+ Kh8 25. gxf3 Ng5) 24. Bd1 {[%emt 0:
07:25]} (24. h4 $17) 24... Ng5 $19 {[%emt 0:00:00]} 25. Qc5 $2 {[%emt 0:01:43]
[#]} (25. h4 Bh3 26. gxf3 (26. hxg5 Bxg2 27. Bb3+ Kh7 28. g6+ Kxg6)) 25... Bh3
$1 {[%emt 0:03:53][%cal Yc8g4] ( -> ...Qg4!)} 26. Qxe5 {[%emt 0:06:22] [#]} (
26. Bb3+ Kh7) 26... Bxg2 $1 {[%emt 0:00:47][%cal Rg5h3]} 27. h4 {[%emt 0:00:31]
} (27. Bb3+ Kh7) 27... Nh3+ {[%emt 0:05:11]} ({Don't blunder} 27... Qh3 $2 28.
Qh2 Qxh2+ 29. Kxh2 Rxe4 30. Rxe4 (30. hxg5 $2 {gets mated.} Rh4+ 31. Kg3 Rh3+
32. Kg4 h5#) 30... Nxe4 31. Be5 Nxf2 32. Bxc7 Ng4+ 33. Kg3 $19) 28. Kh2 {
[%emt 0:00:01] [#]} Nf4 $1 {[%emt 0:00:18]} 29. Bb3+ {[%emt 0:01:17]} Kh8 {
[%emt 0:00:16]} 30. Be6 {[%emt 0:00:26] [#]} Nxe6 $1 {[%emt 0:00:10]} 31. Bxd4
{[%emt 0:00:52]} Nxd4 {[%emt 0:00:33]} 32. Rad1 {[%emt 0:01:00]} Qh3+ {[%emt 0:
00:11]} 33. Kg1 {[%emt 0:00:13]} Qh1# {[%emt 0:00:04] Weighted Error Value:
White=1.18/Black=0.30} *

[Event "44th Chess Olympiad Open 2022"]
[Site "Chennai"]
[Date "2022.08.03"]
[Round "6.43"]
[White "Rodgaard, John"]
[Black "Pleasants, Allan J"]
[Result "1-0"]
[WhiteElo "2324"]
[BlackElo "2024"]
[Annotator "TA"]
[PlyCount "97"]
[EventDate "2022.??.??"]
[TimeControl "60"]

{[%evp 16,97,58,62,52,56,55,37,59,59,69,53,89,50,98,47,70,52,37,22,102,108,109,
103,95,112,137,36,109,103,162,19,2,13,121,52,54,51,54,36,28,33,32,0,29,-156,
-150,-116,-129,-193,-206,-158,0,-218,-208,-195,-19,-27,0,6,9,0,153,153,335,331,
321,326,297,267,343,250,250,250,29990,258,29991,29992,29993,29994,29994,29995,
29996,29997]} 1. Nf3 {[%emt 0:00:15]} Nf6 {[%emt 0:00:07]} 2. c4 {[%emt 0:00:
00]} g6 {[%emt 0:00:08]} 3. Nc3 {[%emt 0:00:59]} Bg7 {[%emt 0:00:11]} 4. e4 {
[%emt 0:00:47]} d6 {[%emt 0:00:14]} 5. d4 {[%emt 0:00:28]} O-O {[%emt 0:00:51]}
6. Be2 {[%emt 0:00:31]} Na6 {[%emt 0:02:26][%cal Yb8a6,Ya6c5,Yc5e6]} 7. O-O {
[%emt 0:03:44]} e5 {[%emt 0:01:41]} 8. Be3 {[%emt 0:05:09]} c6 {[%emt 0:03:16]}
9. Re1 {[%emt 0:23:10]} exd4 {[%emt 0:08:25] Recently 9...Re8 got a lot of
attention. E94: King's Indian: Classical: 6 Be2 e5 7 0-0: Various Black 7th
moves.} 10. Nxd4 {[%emt 0:00:54]} (10. Qxd4 Ng4 11. Qd2 Nxe3 12. Qxe3 Qb6 $15)
10... Re8 {[%emt 0:06:48]} 11. f3 {[%emt 0:06:14]} Nc5 {[%emt 0:10:19] White
is slightly better.} 12. Qd2 {[%emt 0:03:14]} Ne6 {[%emt 0:17:32]} 13. Rad1 {
[%emt 0:07:03]} Qc7 {[%emt 0:07:51]} 14. Bf1 {[%emt 0:19:18] [#]} a6 $146 {
[%emt 0:05:19]} (14... Nxd4 $14 {is superior.} 15. Bxd4 Be6) ({Predecessor:} 
14... Rd8 15. Nxe6 Bxe6 16. Qf2 Qe7 17. Rd2 Ne8 18. Red1 a6 19. c5 Bxc3 20.
bxc3 d5 21. exd5 Bxd5 {1-0 (30) Schmid,E (2001)-Claus,A (1667) Leipzig 2016})
15. Nb3 {[%emt 0:03:51]} ({Better is} 15. Nxe6 $16 Bxe6 16. Qxd6 Qxd6 17. Rxd6)
15... Bf8 $14 {[%emt 0:01:53]} 16. Qf2 {[%emt 0:03:27]} b5 {[%emt 0:03:53]} 17.
c5 {[%emt 0:02:46]} Nd7 {[%emt 0:01:33]} (17... Nxc5 $11 {keeps the balance.}
18. Nxc5 dxc5) 18. cxd6 $16 {[%emt 0:00:45] White is more active.} Bxd6 {
[%emt 0:00:11]} 19. g3 $1 {[%emt 0:00:21]} Bf8 {[%emt 0:02:33]} 20. f4 {
[%emt 0:00:51]} Bb7 {[%emt 0:02:18]} 21. e5 {[%emt 0:02:50]} (21. Bh3 $16)
21... f5 {[%emt 0:10:39]} (21... c5 $14) 22. Bg2 {[%emt 0:01:47]} a5 {[%emt 0:
00:00]} (22... Rac8 $16 {might work better.}) 23. Re2 {[%emt 0:03:55]} (23. Rc1
$1 $18) 23... a4 $11 {[%emt 0:00:27]} 24. Nd4 {[%emt 0:01:15]} Ndc5 {[%emt 0:
00:00]} (24... Nxd4 $11 {remains equal.} 25. Rxd4 (25. Bxd4 b4 $14) 25... b4)
25. Nxe6 {[%emt 0:01:39]} (25. Rc2 $1 $16) 25... Nxe6 $14 {[%emt 0:00:21]} 26.
Red2 {[%emt 0:01:35]} Rad8 {[%emt 0:03:48] Prevents Rd7.} 27. Bb6 {[%emt 0:00:
00]} Rxd2 {[%emt 0:00:12]} 28. Rxd2 {[%emt 0:00:12]} Qc8 {[%emt 0:02:30]} 29.
Qe3 {[%emt 0:01:22]} a3 {[%emt 0:01:24]} 30. b3 $2 {[%emt 0:01:22]} (30. bxa3
$11 Qa8 31. Rd7) 30... b4 $1 $17 {[%emt 0:01:05]} 31. Na4 {[%emt 0:00:47]} c5 {
[%emt 0:00:36]} 32. Bxb7 {[%emt 0:01:48]} (32. Bf1 $17) 32... Qxb7 $19 {
[%emt 0:00:08]} 33. Qd3 {[%emt 0:00:49] [#]} (33. Bxc5 $2 Rc8 34. Rd6 (34. Rc2
$2 Nxc5 35. e6 Ne4 $19) 34... Bxd6 35. exd6 Qd5 $19) 33... Nd4 $2 {[%emt 0:00:
00]} (33... Ra8 $1 $17 {White must now prevent ...Nd4.} 34. Qc4 Kf7) 34. Rf2 $2
{[%emt 0:00:31] [#]} (34. Qc4+ Kh8 35. Rd1 Qf3 $17) (34. Kf2 $11) 34... Rc8 $1
{[%emt 0:01:04]} (34... Qd5 35. Rd2 $11) 35. Qc4+ {[%emt 0:00:45]} Kg7 $2 {
[%emt 0:00:32]} (35... Kh8 $19 {[%cal Yg6g5] And now ...g5! would win.} 36. h3
Nf3+ 37. Kf1 Nd4) 36. Bxc5 $11 {[%emt 0:00:23]} Bxc5 {[%emt 0:00:47]} (36...
Qe4 $2 37. Qxd4 Qxd4 38. Bxd4 $18) 37. Nxc5 {[%emt 0:00:02]} Nf3+ $1 {[%emt 0:
00:00]} 38. Kf1 {[%emt 0:00:58]} Qa8 {[%emt 0:00:28]} ({Black should try} 38...
Nd2+ $1 $11 39. Ke2 (39. Rxd2 Qh1+ 40. Kf2 Qxh2+ 41. Ke3 Qxg3+ 42. Ke2 Qh2+ 43.
Ke3 Qg3+ 44. Ke2 Qh2+ 45. Ke3 Qg3+ $11) 39... Nxc4 40. Nxb7 Nb2) 39. Qxb4 $16 {
[%emt 0:00:40]} Kh6 $2 {[%emt 0:00:25] A mistake that costs the game.} (39...
Nxh2+ $16 40. Rxh2 Qf3+ 41. Rf2 Qd1+ 42. Kg2 Qd5+ 43. Ne4 Qxe4+ 44. Qxe4 fxe4)
40. Qc3 {[%emt 0:00:20] Threatens to win with b4.} Qd5 {[%emt 0:00:35]
Strongly threatening ...Nd4.} 41. Qxf3 {[%emt 0:05:20]} ({Not} 41. Rxf3 Rxc5
42. Qd3 Qc6 $11) 41... Qxc5 $18 {[%emt 0:01:15] Endgame KQR-KQR} 42. Kg2 {
[%emt 0:05:46]} Qc1 {[%emt 0:03:58]} 43. e6 {[%emt 0:03:11]} Rc3 {[%emt 0:00:
00]} 44. Qa8 {[%emt 0:03:54] White threatens Qf8+ and mate.} Re3 $2 {[%emt 0:
03:52]} (44... Rc8 $18 45. Qf3 Rc3) 45. Qf8+ {[%emt 0:02:52]} ({Less strong is
} 45. Qd8 Rxe6 46. Qf8+ Kh5 $16) 45... Kh5 {[%emt 0:00:12]} 46. Qg7 {[%emt 0:
02:34] White mates.} Qc6+ {[%emt 0:06:30]} 47. Kh3 {[%emt 0:01:00][%cal Rg7h7]}
Rxg3+ {[%emt 0:01:10]} 48. Kxg3 {[%emt 0:00:29][%cal Rg7h7]} Qc3+ {[%emt 0:00:
09]} 49. Qxc3 {[%emt 0:00:10] Weighted Error Value: White=0.39/ Black=0.49} 1-0

[Event "44th Chess Olympiad Open 2022"]
[Site "Chennai"]
[Date "2022.08.03"]
[Round "6.43"]
[White "Blackburn, Jonathan L B"]
[Black "Ziska, Helgi Dam"]
[Result "0-1"]
[WhiteElo "2176"]
[BlackElo "2549"]
[Annotator "TA"]
[PlyCount "94"]
[EventDate "2022.??.??"]
[TimeControl "60"]

{[%evp 15,94,38,40,33,45,10,43,4,25,0,13,22,67,38,50,63,95,82,35,40,138,138,
205,174,264,270,335,139,204,219,365,-21,-20,-12,0,-13,-22,-27,-27,-58,-27,-143,
-139,-171,-170,-190,-198,-243,-186,-206,-99,-95,-104,-153,-167,-152,-157,-219,
-218,-335,-335,-342,-343,-340,-324,-333,-327,-440,-426,-435,-427,-514,-502,
-508,-504,-459,-452,-520,-514,-514,-415]} 1. d4 {[%emt 0:00:03]} Nf6 {[%emt 0:
00:00]} 2. c4 {[%emt 0:00:04]} g6 {[%emt 0:00:13]} 3. Nc3 {[%emt 0:00:03]} Bg7
{[%emt 0:00:08]} 4. e4 {[%emt 0:00:06]} d6 {[%emt 0:00:05]} 5. f3 {[%emt 0:00:
00]} O-O {[%emt 0:01:06]} 6. Be3 {[%emt 0:00:04]} a6 {[%emt 0:01:26]} 7. Qd2 {
[%emt 0:01:33]} Nbd7 {[%emt 0:00:38]} 8. Nh3 {[%emt 0:01:37]} c6 {[%emt 0:00:
00]} 9. Nf2 {[%emt 0:08:27] E81: King's Indian: Sämisch: 6th move deviations 
(including 6 Be3 c6).} b5 {[%emt 0:00:54]} 10. Rc1 {[%emt 0:06:03]} Qa5 {
[%emt 0:23:42] [#]} 11. a3 $146 {[%emt 0:11:11] White is slightly better.} ({
Predecessor:} 11. b3 Bb7 12. Be2 bxc4 13. bxc4 c5 14. dxc5 Nxc5 15. O-O Rfc8
16. Rfd1 {½-½ (26) Martinsen,S (2145)-Obsieger,H Hastings 2012}) 11... Rb8 {
[%emt 0:13:43]} 12. Be2 {[%emt 0:14:57]} bxc4 {[%emt 0:02:20]} 13. Bxc4 {
[%emt 0:00:13]} d5 {[%emt 0:01:50]} 14. Ba2 {[%emt 0:07:18]} e5 {[%emt 0:06:56]
} 15. O-O {[%emt 0:06:34]} dxe4 {[%emt 0:04:03]} 16. fxe4 {[%emt 0:04:38]} exd4
{[%emt 0:02:12]} 17. Bxd4 {[%emt 0:00:05]} Qh5 {[%emt 0:01:57]} (17... Ne5 $14)
18. Ne2 $1 $16 {[%emt 0:03:45]} Bh6 {[%emt 0:02:58]} (18... Bb7 $16) 19. Nf4
$18 {[%emt 0:01:57]} Qg5 {[%emt 0:01:40]} (19... Qh4 $142 20. g3 Bxf4 21. Qxf4
(21. gxh4 $2 Bxd2 22. Rxc6 Bb7 $17) (21. gxf4 c5 $14) 21... Qxf4 22. gxf4 Bb7)
20. N2h3 $1 {[%emt 0:04:36]} (20. Rxc6 Qxf4 21. Qxf4 Bxf4 $11) (20. g3 $6 c5
21. Be3 Ne5 $16) 20... Qh4 {[%emt 0:02:07]} 21. Qe2 {[%emt 0:03:14]} (21. Rxc6
$18 {is more deadly. Black must now prevent e5.} Bb7 22. Rc7) 21... c5 {
[%emt 0:01:29] [#]} (21... Qg4 $16) 22. Bc3 $1 {[%emt 0:01:48]} ({Worse is} 22.
g3 Qg4 23. Qxg4 Nxg4 $11) 22... Bb7 {[%emt 0:01:09]} (22... Nb6 {might work
better.}) 23. Bd5 $2 {[%emt 0:02:29]} ({Stronger than} 23. g3 Qg4 24. Qxg4 Nxg4
$11) (23. e5 $18 Bxf4 24. Nxf4) 23... Nxd5 {[%emt 0:04:10]} 24. exd5 {[%emt 0:
00:00]} Rfe8 $36 {[%emt 0:02:47] Black is pushing.} 25. Qd1 {[%emt 0:01:32]} (
25. Qf3 $5 {[%cal Rf4g6]} Ne5 26. Bxe5 Rxe5 27. Rxc5 $11) 25... Re4 {[%emt 0:
00:46][%cal Re4f4]} 26. g3 {[%emt 0:01:22]} Qe7 {[%emt 0:00:00]} 27. Rc2 {
[%emt 0:04:34]} Re8 {[%emt 0:01:39]} 28. Rcf2 {[%emt 0:02:06] [#]} (28. d6 $11
{keeps the balance.} Qd8 29. Nd5) 28... Qd6 $1 $17 {[%emt 0:00:00]} 29. Qb3 {
[%emt 0:03:19]} Ba8 {[%emt 0:01:22]} 30. Rd1 {[%emt 0:00:23]} Ne5 {[%emt 0:01:
34]} 31. Ng2 {[%emt 0:05:40]} c4 {[%emt 0:06:05]} 32. Qb4 {[%emt 0:00:00]} Qxb4
{[%emt 0:00:26]} (32... Qc7 $19 {and Black stays clearly on top. aiming for ...
Nd3.} 33. Nhf4 Bxf4 34. Rxf4 (34. Nxf4 $2 Ng4 $19) 34... Qa7+ 35. Kf1 (35. Kh1
$2 Nd3 $19) 35... Nd3 36. Rxd3 Rxf4+ 37. Nxf4 cxd3) 33. axb4 {[%emt 0:00:33]}
Nd3 {[%emt 0:00:41]} 34. Rff1 {[%emt 0:00:04]} ({White should try} 34. Rc2)
34... Bxd5 {[%emt 0:00:17]} 35. Nhf4 {[%emt 0:01:00]} Bc6 {[%emt 0:02:21]
Black is much more active.} 36. Nxd3 {[%emt 0:02:16]} (36. Ra1 $17) 36... cxd3
$19 {[%emt 0:00:02]} 37. Rxd3 {[%emt 0:01:50]} (37. Nf4 $142) 37... Bb5 {
[%emt 0:00:29] This bishop pair is nice.} 38. Rd6 {[%emt 0:00:19]} Bxf1 {
[%emt 0:00:30]} 39. Kxf1 {[%emt 0:00:02]} R4e6 {[%emt 0:01:27]} 40. Rd5 {
[%emt 0:00:15]} Rc6 {[%emt 0:03:26]} 41. b5 {[%emt 0:31:37]} axb5 {[%emt 0:00:
00] Black is clearly winning.} 42. Rxb5 {[%emt 0:00:04]} Bg7 {[%emt 0:00:52]}
43. Bxg7 {[%emt 0:00:23]} Rc1+ {[%emt 0:00:33]} 44. Kf2 {[%emt 0:00:07]} Rc2+ {
[%emt 0:00:09]} 45. Kf3 {[%emt 0:00:06] Hoping for Bc3.} Kxg7 {[%emt 0:00:05]}
46. h4 {[%emt 0:00:39]} Ree2 {[%emt 0:00:34]} 47. Nf4 {[%emt 0:00:06]} Rxb2 {
[%emt 0:00:26] Never resign too early! Weighted Error Value: White=0.48/
Black=0.23 (precise)} 0-1

[Event "44th Chess Olympiad Open 2022"]
[Site "Chennai"]
[Date "2022.08.03"]
[Round "6.43"]
[White "Bullen, Alex"]
[Black "Egilstoft, Rogvi"]
[Result "0-1"]
[WhiteElo "2106"]
[BlackElo "2284"]
[Annotator "TA"]
[PlyCount "130"]
[EventDate "2022.??.??"]
[TimeControl "60"]

{[%evp 18,130,14,0,0,-14,-17,-22,0,0,0,-79,15,0,0,-17,-21,-25,-25,-58,-72,-69,
-77,-104,-72,-117,-133,-121,-91,-95,-95,-95,-93,-95,-66,-89,-74,-120,-102,-156,
-157,-160,-155,-146,-113,-117,-120,-111,-122,-140,-117,-115,-104,-109,-110,
-181,-134,-140,-140,-124,-65,-62,0,-123,-21,-22,0,-149,-129,-242,-214,-427,
-425,-427,-421,-412,-409,-737,-404,-397,-404,-397,-397,-397,-397,-397,-397,
-394,-389,-984,-984,-894,-887,-1059,-880,-867,-854,-824,-700,-1468,-699,-1690,
-1602,-5173,-4552,-6483,-875,-1466,-1273,-7521,-8543,-29986,-29987,-29987,
-29988]} 1. d4 {[%emt 0:00:03]} g6 {[%emt 0:00:39]} 2. e4 {[%emt 0:00:08]} Bg7
{[%emt 0:00:08]} 3. Nf3 {[%emt 0:00:11]} d6 {[%emt 0:01:15]} 4. Nc3 {[%emt 0:
00:00]} a6 {[%emt 0:01:13]} 5. a4 {[%emt 0:00:16]} Nf6 {[%emt 0:01:18]} 6. h3 {
[%emt 0:00:10]} Nc6 {[%emt 0:03:02]} 7. Be3 {[%emt 0:01:30]} O-O {[%emt 0:00:
00]} 8. Be2 {[%emt 0:03:05]} e5 {[%emt 0:00:59]} 9. dxe5 {[%emt 0:01:15]} dxe5
{[%emt 0:00:40]} 10. O-O {[%emt 0:06:09]} Qe7 {[%emt 0:09:52] [#] B08: Pirc
Defence: Classical System.} 11. Qb1 $146 {[%emt 0:06:57]} ({Predecessor:} 11.
Nd5 Nxd5 12. exd5 Rd8 13. Bg5 f6 14. Bd2 Nb8 15. a5 c6 16. dxc6 Nxc6 17. Bc4+
Kh8 18. Qe2 {1-0 (42) Bosiocic,M (2623)-Zubov,A (2601) Moscow 2019}) 11... Rd8
{[%emt 0:06:41]} 12. Rd1 {[%emt 0:03:18]} Be6 {[%emt 0:06:34] The position is
equal.} 13. Ng5 {[%emt 0:11:05]} Nd4 {[%emt 0:01:48]} 14. Bf1 {[%emt 0:03:03]}
(14. Nxe6 $11 {remains equal.} Nxe2+ 15. Nxe2 Qxe6 16. f3) 14... Rd7 {[%emt 0:
00:00]} (14... Bd7 $17) 15. Nxe6 {[%emt 0:08:55]} Qxe6 {[%emt 0:00:33]} 16. Bg5
{[%emt 0:00:54]} Rad8 {[%emt 0:04:23]} 17. Nd5 {[%emt 0:04:32]} c6 {[%emt 0:00:
00]} 18. Bxf6 {[%emt 0:04:47]} Bxf6 {[%emt 0:00:31]} 19. Ne3 {[%emt 0:02:07]}
Bg5 {[%emt 0:03:57] [#] aiming for ...Bxe3.} 20. Re1 {[%emt 0:09:13]} Qf6 {
[%emt 0:06:44]} 21. Bc4 {[%emt 0:05:39]} h5 {[%emt 0:02:41]} (21... Bxe3 {
looks sharper.} 22. Rxe3 Nxc2 23. Rf3 Nxa1 24. Rxf6 Rd1+) 22. c3 {[%emt 0:00:
00]} Ne6 {[%emt 0:00:39]} 23. Bxe6 {[%emt 0:00:37]} Qxe6 {[%emt 0:00:08]} 24.
Nf1 {[%emt 0:02:30]} Rd3 {[%emt 0:05:29]} 25. Qc2 {[%emt 0:02:22]} Qd6 {
[%emt 0:01:23] Black is much more active.} 26. Re2 {[%emt 0:01:05]} Rd7 {
[%emt 0:04:20]} 27. Rae1 {[%emt 0:03:53]} (27. Ree1 $142) 27... Qe6 $17 {
[%emt 0:00:00]} 28. c4 {[%emt 0:04:42]} (28. Ra1 $142) 28... R7d4 {[%emt 0:00:
00]} 29. b3 {[%emt 0:01:01]} Bh6 {[%emt 0:04:10]} 30. Ne3 {[%emt 0:04:45]} Bf8
{[%emt 0:05:56]} 31. Rd1 {[%emt 0:00:42]} Rxd1+ {[%emt 0:00:37]} 32. Nxd1 {
[%emt 0:00:02]} Qd7 {[%emt 0:00:35]} 33. Ne3 {[%emt 0:01:09]} Bc5 {[%emt 0:00:
00]} 34. Nf1 {[%emt 0:01:34]} Bb4 {[%emt 0:00:24] Inhibits Rd2.} 35. Ne3 {
[%emt 0:01:02] Inhibits Rd1+.} Qd6 {[%emt 0:00:51]} 36. g4 {[%emt 0:02:01]} (
36. Kh1 $17) 36... h4 {[%emt 0:06:22]} (36... Qd8 $19 37. gxh5 Qg5+ 38. Kf1
Qxh5) 37. Kh2 {[%emt 0:02:07]} Qd8 {[%emt 0:02:45]} 38. Kg2 {[%emt 0:00:56]}
Qf6 {[%emt 0:01:32]} ({Black should try} 38... Kg7 $17 39. Qb1 Kg8) 39. Nf1 $1
$15 {[%emt 0:00:24]} Qd8 {[%emt 0:00:22]} (39... Qe7 $15) 40. Ne3 $17 {[%emt 0:
00:00]} Be7 {[%emt 0:00:57]} (40... Kg7 $17 41. Qb1 Kg8) 41. Nf1 $1 $11 {
[%emt 0:06:52]} Bg5 {[%emt 0:06:53]} 42. Ne3 {[%emt 0:01:20] Inhibits Rd1.
White is now going downhill.} (42. Nh2 $1 $11) 42... Bf4 {[%emt 0:08:04]} 43.
Kf3 {[%emt 0:03:58]} (43. c5 $17 {might work better.}) 43... Rd3 $19 {[%emt 0:
00:00]} 44. Kg2 $2 {[%emt 0:00:36]} (44. b4) 44... Qd4 $1 {[%emt 0:00:45][%csl
Ye3,Ye4][%cal Rf4e3]} 45. Kf3 {[%emt 0:08:16]} Rc3 {[%emt 0:07:16]} 46. Qb1 {
[%emt 0:00:37]} a5 {[%emt 0:01:20]} 47. b4 {[%emt 0:02:15]} (47. Re1 $142)
47... Qxc4 {[%emt 0:01:04]} 48. bxa5 {[%emt 0:00:26]} Qxa4 {[%emt 0:00:21]} 49.
Ra2 {[%emt 0:02:09]} Qd4 {[%emt 0:00:46][%cal Rc3e3] Chess con chili.} 50. Re2
{[%emt 0:00:58]} Ra3 {[%emt 0:00:54] [#] ...Ra1 is the strong threat.} 51. Qc2
{[%emt 0:07:43]} Qa1 {[%emt 0:01:13][%cal Ra1h1]} 52. Kg2 {[%emt 0:00:30]
Prevents Qh1+.} Bxe3 {[%emt 0:00:26]} 53. Rxe3 {[%emt 0:00:08]} (53. fxe3 Rxa5
54. Rf2) 53... Rxe3 {[%emt 0:00:20]} 54. fxe3 {[%emt 0:00:04]} Qxa5 {[%emt 0:
00:00] Endgame KQ-KQ} 55. Qb2 {[%emt 0:00:38]} Qc7 {[%emt 0:00:59] And now ...
c5 would win.} 56. Kf3 {[%emt 0:00:28]} Qe7 {[%emt 0:01:03]} 57. Qa1 {[%emt 0:
00:22]} Kg7 {[%emt 0:00:15]} 58. Qg1 {[%emt 0:00:30]} Qf6+ {[%emt 0:00:00]} (
58... b5 $142 59. Qa1 b4) 59. Kg2 {[%emt 0:00:54]} b5 {[%emt 0:00:09][%cal
Yb7b5,Yb5b4,Yb4b3]} 60. Qc1 {[%emt 0:00:44]} Qd6 {[%emt 0:00:30]} 61. Qe1 {
[%emt 0:00:14]} Qe7 {[%emt 0:00:10]} (61... b4 $142 62. Qe2 b3) 62. Qf1 {
[%emt 0:00:30]} b4 {[%emt 0:01:33]} 63. Qc4 {[%emt 0:00:08]} Qd6 {[%emt 0:00:
00] ( -> ...Qd2+)} 64. Kf3 {[%emt 0:00:34]} Qd1+ {[%emt 0:00:29]} 65. Kf2 {
[%emt 0:00:08]} b3 {[%emt 0:00:19] Weighted Error Value: White=0.55/Black=0.32}
0-1